[Event "DVM U12W 2021"]
[Site "Willingen"]
[Date "2022.08.13"]
[Round "1"]
[White "Wagner, Cosima Thien-An"]
[Black "Schuelke, Rosalie"]
[Result "1/2-1/2"]
[ECO "C01"]
[WhiteElo "1301"]
[BlackElo "1297"]
[Annotator "NA RC COMBH"]
[PlyCount "79"]
[EventDate "2022.08.12"]
[EventType "team-tourn"]
[EventRounds "7"]
[EventCountry "GER"]
[SourceTitle "playchess.com"]
[Source "ChessBase"]
[SourceQuality "1"]
[TimeControl "40/5400+30:1800+30"]

1. e4 {[%emt 0:00:01]} e6 {[%emt 0:00:05]} 2. d4 {[%emt 0:00:06]} d5 {[%emt 0:00:06]} 3. exd5 {[%emt 0:00:07]} exd5 {[%emt 0:00:10]} 4. Be3 {[%emt 0:03:19]} Nf6 {[%emt 0:00:18]} 5. h3 {[%emt 0:05:49]} Bd6 {[%emt 0:00:43]} 6. Nc3 {[%emt 0:06:25]} Bf5 {[%emt 0:04:09]} 7. Bd3 {[%emt 0:03:59]} Bg6 {[%emt 0:08:09]} 8. Qd2 {[%emt 0:03:29]} O-O {[%emt 0:00:31]} 9. O-O-O {[%emt 0:02:24]} c6 {[%emt 0:01:54]} 10. Nf3 {[%emt 0:05:23]} Nbd7 {[%emt 0:00:35]} 11. Nh4 {[%emt 0:06:58]} b5 {[%emt 0:05:34]} 12. Nxg6 {[%emt 0:02:49]} hxg6 {[%emt 0:03:04]} 13. h4 {[%emt 0:04:25]} a5 {[%emt 0:01:10]} 14. Rdg1 {[%emt 0:02:50]} a4 {[%emt 0:01:59]} 15. g4 {[%emt 0:04:05]} b4 {[%emt 0:02:00]} 16. Nb1 {[%emt 0:04:48]} Ne4 {[%emt 0:13:52]} 17. Bxe4 {[%emt 0:01:04]} dxe4 {[%emt 0:00:06]} 18. h5 {[%emt 0:03:28]} Nb6 {[%emt 0:04:22]} 19. h6 {[%emt 0:02:48]} Nc4 {[%emt 0:01:41]} 20. Qe2 {[%emt 0:01:25]} Nxe3 {[%emt 0:01:18]} 21. Qxe3 {[%emt 0:00:57]} Qf6 {[%emt 0:04:37]} 22. g5 {[%emt 0:12:49]} Qf4 {[%emt 0:02:25]} 23. Qxf4 {[%emt 0:01:41]} Bxf4+ {[%emt 0:00:09]} 24. Kd1 {[%emt 0:00:11]} gxh6 {[%emt 0:01:00]} 25. Rxh6 {[%emt 0:01:24]} Kg7 {[%emt 0:00:16]} 26. Rh4 {[%emt 0:01:04]} Bd6 {[%emt 0:01:41]} 27. Rxe4 {[%emt 0:00:37]} Rad8 {[%emt 0:05:10]} 28. c3 {[%emt 0:02:38]} Rh8 {[%emt 0:02:16]} 29. Reg4 {[%emt 0:01:26]} Rh2 {[%emt 0:03:08]} 30. R4g2 {[%emt 0:01:28]} Rh3 {[%emt 0:03:37]} 31. Kc2 {[%emt 0:01:41]} Bf4 {[%emt 0:06:00]} 32. Nd2 {[%emt 0:01:55]} Bxd2 {[%emt 0:02:19]} 33. Kxd2 {[%emt 0:00:08]} bxc3+ {[%emt 0:01:45]} 34. bxc3 {[%emt 0:00:07]} c5 {[%emt 0:00:18]} 35. Rg3 {[%emt 0:02:41]} Rxg3 {[%emt 0:00:55]} 36. Rxg3 {[%emt 0:00:22]} cxd4 {[%emt 0:00:07]} 37. Rd3 {[%emt 0:01:08]} dxc3+ {[%emt 0:00:31]} 38. Kxc3 {[%emt 0:01:04]} Rc8+ {[%emt 0:02:58]} 39. Kb2 {[%emt 0:00:33]} Rc4 {[%emt 0:01:45]} 40. Rf3 {[%emt 0:05:44]} 1/2-1/2

[Event "DVM U12W 2021"]
[Site "Willingen"]
[Date "2022.08.13"]
[Round "1"]
[White "Goeb, Franziska"]
[Black "Prokscha, Charlotte"]
[Result "1/2-1/2"]
[ECO "B40"]
[WhiteElo "1285"]
[BlackElo "1241"]
[Annotator "NA RC COMBH"]
[PlyCount "47"]
[EventDate "2022.08.12"]
[EventType "team-tourn"]
[EventRounds "7"]
[EventCountry "GER"]
[SourceTitle "playchess.com"]
[Source "ChessBase"]
[SourceQuality "1"]
[TimeControl "40/5400+30:1800+30"]

1. e4 {[%emt 0:00:01]} c5 {[%emt 0:00:06]} 2. Nf3 {[%emt 0:00:08]} e6 {[%emt 0:00:07]} 3. c4 {[%emt 0:05:28]} d5 {[%emt 0:04:56]} 4. cxd5 {[%emt 0:04:36]} exd5 {[%emt 0:01:04]} 5. exd5 {[%emt 0:04:11]} Qxd5 {[%emt 0:03:52]} 6. Nc3 {[%emt 0:08:43]} Qd8 {[%emt 0:04:31]} 7. Bb5+ {[%emt 0:05:18]} Bd7 {[%emt 0:02:04]} 8. Qe2+ {[%emt 0:03:52]} Qe7 {[%emt 0:02:44]} 9. Qxe7+ {[%emt 0:03:17]} Bxe7 {[%emt 0:00:15]} 10. O-O {[%emt 0:06:22]} Nf6 {[%emt 0:01:21]} 11. Re1 {[%emt 0:02:37]} Bxb5 {[%emt 0:02:12]} 12. Nxb5 {[%emt 0:00:19]} Kd8 {[%emt 0:04:13]} 13. d4 {[%emt 0:03:23]} a6 {[%emt 0:02:03]} 14. Nc3 {[%emt 0:02:17]} Nc6 {[%emt 0:04:46]} 15. dxc5 {[%emt 0:09:11]} Bxc5 {[%emt 0:01:48]} 16. Be3 {[%emt 0:02:49]} Bxe3 {[%emt 0:01:14]} 17. Rxe3 {[%emt 0:00:23]} h6 {[%emt 0:01:04]} 18. Rd1+ {[%emt 0:00:38]} Kc7 {[%emt 0:00:57]} 19. Ne5 {[%emt 0:03:07]} Nxe5 {[%emt 0:02:30]} 20. Rxe5 {[%emt 0:00:11]} Rhe8 {[%emt 0:00:28]} 21. Rc5+ {[%emt 0:01:23]} Kb6 {[%emt 0:03:29]} 22. Na4+ {[%emt 0:03:28]} Ka7 {[%emt 0:00:40]} 23. h3 {[%emt 0:02:25]} Rad8 {[%emt 0:00:22]} 24. Rxd8 {[%emt 0:00:37]} 1/2-1/2

[Event "DVM U12W 2021"]
[Site "Willingen"]
[Date "2022.08.13"]
[Round "1"]
[White "Leicher, Anna"]
[Black "Marrufo, Emilia"]
[Result "*"]
[ECO "C47"]
[WhiteElo "1252"]
[BlackElo "970"]
[Annotator "NA RC COMBH"]
[PlyCount "51"]
[EventDate "2022.08.12"]
[EventType "team-tourn"]
[EventRounds "7"]
[EventCountry "GER"]
[SourceTitle "playchess.com"]
[Source "ChessBase"]
[SourceQuality "1"]
[TimeControl "40/5400+30:1800+30"]

1. e4 {[%emt 0:00:12]} e5 {[%emt 0:00:00]} 2. Nf3 {[%emt 0:00:34]} Nc6 {[%emt 0:00:17]} 3. d4 {[%emt 0:06:55]} d6 {[%emt 0:01:20]} 4. dxe5 {[%emt 0:03:32]} Nxe5 {[%emt 0:00:46]} 5. Nxe5 {[%emt 0:00:48]} dxe5 {[%emt 0:01:12]} 6. Qxd8+ {[%emt 0:00:21]} Kxd8 {[%emt 0:01:45]} 7. Nc3 {[%emt 0:01:19]} Nf6 {[%emt 0:02:11]} 8. Bd3 {[%emt 0:01:23]} h6 {[%emt 0:01:26]} 9. O-O {[%emt 0:01:21]} a6 {[%emt 0:02:11]} 10. b3 {[%emt 0:01:06]} Bc5 {[%emt 0:05:19]} 11. Be3 {[%emt 0:03:40]} Bb4 {[%emt 0:03:06]} 12. Nd5 {[%emt 0:02:30]} Nxd5 {[%emt 0:00:34]} 13. exd5 {[%emt 0:01:18]} Bc3 {[%emt 0:00:39]} 14. Rad1 {[%emt 0:03:53]} g5 {[%emt 0:02:45]} 15. Be2 {[%emt 0:02:12]} f5 {[%emt 0:01:13]} 16. d6 {[%emt 0:02:27]} Bd7 {[%emt 0:02:00]} 17. dxc7+ {[%emt 0:00:25]} Kxc7 {[%emt 0:02:35]} 18. a3 {[%emt 0:03:28]} f4 {[%emt 0:01:19]} 19. Rd3 {[%emt 0:03:01]} Bb2 {[%emt 0:01:30]} 20. Bc5 {[%emt 0:04:27]} Bb5 {[%emt 0:02:08]} 21. c4 {[%emt 0:00:55]} Bc6 {[%emt 0:06:42]} 22. Rfd1 {[%emt 0:02:41]} e4 {[%emt 0:02:35]} 23. Bd6+ {[%emt 0:02:02]} Kd7 {[%emt 0:00:53]} 24. R3d2 {[%emt 0:01:20]} Bc3 {[%emt 0:01:16]} 25. Rc2 {[%emt 0:03:14]} Ba5 {[%emt 0:01:29] 4.47} 26. Bb4+ *

[Event "DVM U12W 2021"]
[Site "Willingen"]
[Date "2022.08.13"]
[Round "1"]
[White "Schube, Theresa"]
[Black "Ramakrishnan, Veda"]
[Result "0-1"]
[ECO "B13"]
[WhiteElo "1162"]
[BlackElo "1333"]
[Annotator "NA RC COMBH"]
[PlyCount "98"]
[EventDate "2022.08.12"]
[EventType "team-tourn"]
[EventRounds "7"]
[EventCountry "GER"]
[SourceTitle "playchess.com"]
[Source "ChessBase"]
[SourceQuality "1"]
[TimeControl "40/5400+30:1800+30"]

1. e4 {[%emt 0:00:04]} c6 {[%emt 0:00:06]} 2. d4 {[%emt 0:00:38]} d5 {[%emt 0:00:06]} 3. exd5 {[%emt 0:00:46]} cxd5 {[%emt 0:00:10]} 4. Nc3 {[%emt 0:01:14]} Nf6 {[%emt 0:02:08]} 5. Nf3 {[%emt 0:04:40]} Bg4 {[%emt 0:01:00]} 6. h3 {[%emt 0:00:54]} Bh5 {[%emt 0:00:27]} 7. Be2 {[%emt 0:01:24]} e6 {[%emt 0:00:24]} 8. Ne5 {[%emt 0:03:42]} Bxe2 {[%emt 0:02:18]} 9. Qxe2 {[%emt 0:00:34]} Nbd7 {[%emt 0:01:23]} 10. f4 {[%emt 0:11:38]} Be7 {[%emt 0:02:42]} 11. g4 {[%emt 0:06:26]} Nxe5 {[%emt 0:01:39]} 12. fxe5 {[%emt 0:01:41]} Nd7 {[%emt 0:00:40]} 13. Be3 {[%emt 0:00:19]} Bg5 {[%emt 0:03:19]} 14. Qf3 {[%emt 0:08:15]} Bxe3 {[%emt 0:01:31]} 15. Qxe3 {[%emt 0:00:13]} Qh4+ {[%emt 0:00:46]} 16. Qf2 {[%emt 0:00:11]} Qxf2+ {[%emt 0:00:13]} 17. Kxf2 {[%emt 0:00:11]} Nb6 {[%emt 0:01:11]} 18. Nb5 {[%emt 0:02:41]} Ke7 {[%emt 0:01:43]} 19. Nd6 {[%emt 0:02:14]} Rab8 {[%emt 0:01:05]} 20. Ke2 {[%emt 0:02:07]} Nc8 {[%emt 0:01:50]} 21. Nxc8+ {[%emt 0:00:21]} Rbxc8 {[%emt 0:00:46]} 22. c3 {[%emt 0:00:29]} Rc6 {[%emt 0:00:28]} 23. Rh2 {[%emt 0:00:57]} Rb6 {[%emt 0:00:58]} 24. Kd3 {[%emt 0:00:25]} Rf8 {[%emt 0:00:50]} 25. Rf2 {[%emt 0:01:32]} f6 {[%emt 0:01:25]} 26. Raf1 {[%emt 0:01:20]} Ra6 {[%emt 0:02:10]} 27. a3 {[%emt 0:00:40]} Rc6 {[%emt 0:00:44]} 28. Ke3 {[%emt 0:05:45]} Rcc8 {[%emt 0:00:44]} 29. Kf4 {[%emt 0:04:58]} Rf7 {[%emt 0:00:49]} 30. exf6+ {[%emt 0:00:36]} Rxf6+ {[%emt 0:01:18]} 31. Ke5 {[%emt 0:02:19]} Rcf8 {[%emt 0:03:06]} 32. Rf4 {[%emt 0:01:01]} Rxf4 {[%emt 0:03:28]} 33. Rxf4 {[%emt 0:00:08]} Rxf4 {[%emt 0:00:04]} 34. Kxf4 {[%emt 0:00:09]} Kd6 {[%emt 0:01:34]} 35. h4 {[%emt 0:01:01]} b6 {[%emt 0:04:17]} 36. h5 {[%emt 0:01:25]} h6 {[%emt 0:01:13]} 37. g5 {[%emt 0:00:56]} hxg5+ {[%emt 0:00:52]} 38. Kxg5 {[%emt 0:00:20]} Ke7 {[%emt 0:00:21]} 39. Kg6 {[%emt 0:00:57]} Kf8 {[%emt 0:00:10]} 40. a4 {[%emt 0:02:08]} a6 {[%emt 0:01:39]} 41. b4 {[%emt 0:31:06]} b5 {[%emt 0:31:14]} 42. a5 {[%emt 0:00:32]} Kg8 {[%emt 0:00:08]} 43. h6 {[%emt 0:01:09]} gxh6 {[%emt 0:00:08]} 44. Kxh6 {[%emt 0:00:14]} Kf7 {[%emt 0:00:09]} 45. Kh7 {[%emt 0:00:15]} Kf6 {[%emt 0:00:49]} 46. Kg8 {[%emt 0:00:21]} e5 {[%emt 0:00:28]} 47. dxe5+ {[%emt 0:01:44]} Kxe5 {[%emt 0:00:08]} 48. Kf7 {[%emt 0:00:20]} d4 {[%emt 0:01:28]} 49. c4 {[%emt 0:00:49]} d3 {[%emt 0:00:25]} 0-1

[Event "DVM U12W 2021"]
[Site "Willingen"]
[Date "2022.08.13"]
[Round "1"]
[White "Mehner, Clara"]
[Black "Kopylov, Diana"]
[Result "1-0"]
[ECO "B76"]
[WhiteElo "1150"]
[BlackElo "1108"]
[Annotator "NA RC COMBH"]
[PlyCount "79"]
[EventDate "2022.08.12"]
[EventType "team-tourn"]
[EventRounds "7"]
[EventCountry "GER"]
[SourceTitle "playchess.com"]
[Source "ChessBase"]
[SourceQuality "1"]
[TimeControl "40/5400+30:1800+30"]

1. e4 {[%emt 0:00:01]} c5 {[%emt 0:00:06]} 2. Nf3 {[%emt 0:00:07]} d6 {[%emt 0:00:06]} 3. d4 {[%emt 0:00:09]} cxd4 {[%emt 0:00:07]} 4. Nxd4 {[%emt 0:00:08]} Nf6 {[%emt 0:00:06]} 5. Nc3 {[%emt 0:00:14]} g6 {[%emt 0:00:11]} 6. Be3 {[%emt 0:00:35]} Bg7 {[%emt 0:00:50]} 7. f3 {[%emt 0:00:37]} O-O {[%emt 0:00:14]} 8. Qd2 {[%emt 0:00:40]} Nc6 {[%emt 0:00:44]} 9. O-O-O {[%emt 0:01:15]} Nd7 {[%emt 0:09:14]} 10. g4 {[%emt 0:06:33]} Nde5 {[%emt 0:06:14]} 11. Qg2 {[%emt 0:03:10]} Qb6 {[%emt 0:27:25]} 12. Nf5 {[%emt 0:06:23]} Qa5 {[%emt 0:08:49]} 13. Nxg7 {[%emt 0:01:57]} Kxg7 {[%emt 0:00:16]} 14. Rd5 {[%emt 0:02:25]} Qc7 {[%emt 0:01:52]} 15. h4 {[%emt 0:04:45]} Be6 {[%emt 0:02:05]} 16. Rd1 {[%emt 0:02:12]} a6 {[%emt 0:03:53]} 17. h5 {[%emt 0:03:46]} Rh8 {[%emt 0:03:58]} 18. Nd5 {[%emt 0:06:42]} Qa5 {[%emt 0:07:52]} 19. a3 {[%emt 0:01:45]} Bxd5 {[%emt 0:05:59]} 20. exd5 {[%emt 0:03:22]} Na7 {[%emt 0:01:20]} 21. f4 {[%emt 0:02:51]} Nd7 {[%emt 0:02:22]} 22. Qe4 {[%emt 0:03:06]} Nb6 {[%emt 0:03:43]} 23. Qxe7 {[%emt 0:07:30]} Nxd5 {[%emt 0:03:16]} 24. Bd4+ {[%emt 0:03:22]} Kg8 {[%emt 0:00:27]} 25. Qxb7 {[%emt 0:05:09]} Re8 {[%emt 0:03:24]} 26. Qxa7 {[%emt 0:02:39]} Nxf4 {[%emt 0:01:11]} 27. Bc4 {[%emt 0:04:45]} Rf8 {[%emt 0:04:10]} 28. Qe7 {[%emt 0:02:10]} Qd8 {[%emt 0:02:20]} 29. Rde1 {[%emt 0:02:36]} d5 {[%emt 0:01:55]} 30. Bxh8 {[%emt 0:04:52]} Kxh8 {[%emt 0:00:30]} 31. Qxd8 {[%emt 0:00:52]} Rxd8 {[%emt 0:00:09]} 32. Bxa6 {[%emt 0:00:21]} Ne6 {[%emt 0:00:53]} 33. hxg6 {[%emt 0:00:41]} Ng5 {[%emt 0:00:31]} 34. gxf7 {[%emt 0:02:03]} Nxf7 {[%emt 0:00:33]} 35. Re7 {[%emt 0:00:41]} Ng5 {[%emt 0:00:27]} 36. Bd3 {[%emt 0:00:20]} Rf8 {[%emt 0:00:44]} 37. Bxh7 {[%emt 0:01:23]} Rf2 {[%emt 0:00:28]} 38. Re8+ {[%emt 0:02:06]} Kg7 {[%emt 0:00:11]} 39. Rg8+ {[%emt 0:00:14]} Kf6 {[%emt 0:00:35]} 40. Rg6+ {[%emt 0:00:42]} 1-0

[Event "DVM U12W 2021"]
[Site "Willingen"]
[Date "2022.08.13"]
[Round "1"]
[White "Greive, Greta"]
[Black "Peglau, Lorena"]
[Result "0-1"]
[ECO "B18"]
[WhiteElo "1136"]
[BlackElo "1207"]
[Annotator "NA RC COMBH"]
[PlyCount "60"]
[EventDate "2022.08.12"]
[EventType "team-tourn"]
[EventRounds "7"]
[EventCountry "GER"]
[SourceTitle "playchess.com"]
[Source "ChessBase"]
[SourceQuality "1"]
[TimeControl "40/5400+30:1800+30"]

1. e4 {[%emt 0:00:04]} c6 {[%emt 0:00:07]} 2. Nc3 {[%emt 0:00:31]} d5 {[%emt 0:00:05]} 3. d4 {[%emt 0:01:56]} dxe4 {[%emt 0:00:11]} 4. Nxe4 {[%emt 0:00:18]} Bf5 {[%emt 0:00:09]} 5. Nc3 {[%emt 0:01:44]} e6 {[%emt 0:00:46]} 6. Nf3 {[%emt 0:03:46]} c5 {[%emt 0:00:39]} 7. Be3 {[%emt 0:01:18]} cxd4 {[%emt 0:00:31]} 8. Nxd4 {[%emt 0:02:43]} Bg6 {[%emt 0:00:53]} 9. Bb5+ {[%emt 0:00:38]} Nd7 {[%emt 0:00:39]} 10. O-O {[%emt 0:03:01]} Ngf6 {[%emt 0:01:01]} 11. Qf3 {[%emt 0:04:07]} Rb8 {[%emt 0:02:37]} 12. Rac1 {[%emt 0:01:17]} a6 {[%emt 0:01:59]} 13. Ba4 {[%emt 0:02:06]} Be7 {[%emt 0:01:57]} 14. Bf4 {[%emt 0:00:40]} Bh5 {[%emt 0:00:35]} 15. g4 {[%emt 0:02:22]} Bxg4 {[%emt 0:00:21]} 16. Qg2 {[%emt 0:00:32]} Ra8 {[%emt 0:02:34]} 17. Qxb7 {[%emt 0:02:41]} O-O {[%emt 0:01:02]} 18. Nc6 {[%emt 0:02:55]} Qe8 {[%emt 0:00:36]} 19. Ne5 {[%emt 0:00:44]} Nc5 {[%emt 0:02:50]} 20. Bxe8 {[%emt 0:02:59]} Nxb7 {[%emt 0:00:25]} 21. Bc6 {[%emt 0:00:26]} Ra7 {[%emt 0:00:53]} 22. Be3 {[%emt 0:00:51]} Bc5 {[%emt 0:03:05]} 23. Bf4 {[%emt 0:03:37]} Rd8 {[%emt 0:01:30]} 24. Ba4 {[%emt 0:01:25]} Rd4 {[%emt 0:04:41]} 25. Nc6 {[%emt 0:00:23]} Rxf4 {[%emt 0:00:30]} 26. Nxa7 {[%emt 0:00:47]} Bxa7 {[%emt 0:00:08]} 27. Bc6 {[%emt 0:03:22]} Na5 {[%emt 0:01:16]} 28. Kh1 {[%emt 0:08:44]} Nxc6 {[%emt 0:01:14]} 29. Rfe1 {[%emt 0:02:59]} Bxf2 {[%emt 0:01:39]} 30. Rf1 {[%emt 0:00:52]} Bf3# {[%emt 0:00:15]} 0-1

[Event "DVM U12W 2021"]
[Site "Willingen"]
[Date "2022.08.13"]
[Round "1"]
[White "Henzel, Leonie"]
[Black "Reetz, Shaila"]
[Result "1-0"]
[ECO "D02"]
[WhiteElo "1134"]
[BlackElo "837"]
[Annotator "NA RC COMBH"]
[PlyCount "75"]
[EventDate "2022.08.12"]
[EventType "team-tourn"]
[EventRounds "7"]
[EventCountry "GER"]
[SourceTitle "playchess.com"]
[Source "ChessBase"]
[SourceQuality "1"]
[TimeControl "40/5400+30:1800+30"]

1. d4 {[%emt 0:00:05]} d5 {[%emt 0:00:07]} 2. Nf3 {[%emt 0:00:09]} Nf6 {[%emt 0:00:08]} 3. g3 {[%emt 0:00:13]} g6 {[%emt 0:00:08]} 4. Bg2 {[%emt 0:00:21]} Bg7 {[%emt 0:00:08]} 5. O-O {[%emt 0:00:15]} O-O {[%emt 0:00:07]} 6. b3 {[%emt 0:01:56]} Bf5 {[%emt 0:00:33]} 7. Bb2 {[%emt 0:03:07]} e6 {[%emt 0:00:31]} 8. a4 {[%emt 0:04:35]} b6 {[%emt 0:00:19]} 9. Ne5 {[%emt 0:03:36]} Nbd7 {[%emt 0:00:54]} 10. Nc6 {[%emt 0:02:12]} Qe8 {[%emt 0:00:54]} 11. Ba3 {[%emt 0:01:08]} Be4 {[%emt 0:03:32]} 12. Bxf8 {[%emt 0:02:01]} Nxf8 {[%emt 0:00:51]} 13. Ne5 {[%emt 0:01:10]} Bxg2 {[%emt 0:02:12]} 14. Kxg2 {[%emt 0:00:02]} c5 {[%emt 0:00:57]} 15. c3 {[%emt 0:01:39]} N6d7 {[%emt 0:00:40]} 16. Nxd7 {[%emt 0:02:07]} Qxd7 {[%emt 0:02:42]} 17. e3 {[%emt 0:00:32]} e5 {[%emt 0:00:53]} 18. dxe5 {[%emt 0:02:43]} Ne6 {[%emt 0:00:11]} 19. f4 {[%emt 0:03:18]} d4 {[%emt 0:00:45]} 20. cxd4 {[%emt 0:01:29]} cxd4 {[%emt 0:00:28]} 21. exd4 {[%emt 0:00:41]} Nxd4 {[%emt 0:00:17]} 22. Ra2 {[%emt 0:00:33]} Qd5+ {[%emt 0:00:33]} 23. Kf2 {[%emt 0:02:15]} Bf8 {[%emt 0:00:43]} 24. Rd2 {[%emt 0:01:35]} Bc5 {[%emt 0:00:23]} 25. Rd3 {[%emt 0:09:55]} Nxb3+ {[%emt 0:02:34]} 26. Ke1 {[%emt 0:01:46]} Qe4+ {[%emt 0:00:00]} 27. Qe2 {[%emt 0:00:57]} Qb4+ {[%emt 0:00:09]} 28. Kd1 {[%emt 0:03:14]} Qxa4 {[%emt 0:00:45]} 29. Qc2 {[%emt 0:00:56]} Rc8 {[%emt 0:00:34]} 30. Qxb3 {[%emt 0:01:27]} Qa1 {[%emt 0:00:32]} 31. Ke2 {[%emt 0:02:11]} Qa6 {[%emt 0:00:30]} 32. Rfd1 {[%emt 0:01:19]} Rd8 {[%emt 0:00:19]} 33. Ke1 {[%emt 0:01:13]} Qa5+ {[%emt 0:00:27]} 34. Nc3 {[%emt 0:03:13]} b5 {[%emt 0:00:43]} 35. Rxd8+ {[%emt 0:00:26]} Kg7 {[%emt 0:00:14]} 36. R1d7 {[%emt 0:03:04]} b4 {[%emt 0:00:52]} 37. Qxf7+ {[%emt 0:01:07]} Kh6 {[%emt 0:00:13]} 38. Qxh7# {[%emt 0:00:13]} 1-0

[Event "DVM U12W 2021"]
[Site "Willingen"]
[Date "2022.08.13"]
[Round "1"]
[White "Abram, Kristina-Maria"]
[Black "Müller, Cosima"]
[Result "0-1"]
[ECO "A01"]
[WhiteElo "1128"]
[BlackElo "1355"]
[Annotator "NA RC COMBH"]
[PlyCount "100"]
[EventDate "2022.08.12"]
[EventType "team-tourn"]
[EventRounds "7"]
[EventCountry "GER"]
[SourceTitle "playchess.com"]
[Source "ChessBase"]
[SourceQuality "1"]
[TimeControl "40/5400+30:1800+30"]

1. b3 {[%emt 0:00:04]} e5 {[%emt 0:00:07]} 2. Bb2 {[%emt 0:00:08]} Nc6 {[%emt 0:00:21]} 3. e3 {[%emt 0:00:25]} g6 {[%emt 0:01:40]} 4. Bb5 {[%emt 0:01:03]} Bg7 {[%emt 0:00:09]} 5. Bxc6 {[%emt 0:00:11]} bxc6 {[%emt 0:00:10]} 6. Nf3 {[%emt 0:00:37]} d6 {[%emt 0:00:11]} 7. d3 {[%emt 0:02:46]} Nf6 {[%emt 0:01:20]} 8. O-O {[%emt 0:01:13]} O-O {[%emt 0:00:07]} 9. Re1 {[%emt 0:00:27]} Bg4 {[%emt 0:02:10]} 10. Nbd2 {[%emt 0:01:07]} Re8 {[%emt 0:01:20]} 11. e4 {[%emt 0:02:59]} Nd7 {[%emt 0:02:59]} 12. h3 {[%emt 0:00:48]} Bxf3 {[%emt 0:00:22]} 13. Nxf3 {[%emt 0:00:15]} d5 {[%emt 0:00:23]} 14. exd5 {[%emt 0:04:53]} cxd5 {[%emt 0:00:14]} 15. d4 {[%emt 0:00:13]} e4 {[%emt 0:00:33]} 16. Nd2 {[%emt 0:00:36]} c5 {[%emt 0:00:24]} 17. c4 {[%emt 0:01:17]} cxd4 {[%emt 0:02:15]} 18. cxd5 {[%emt 0:00:15]} Nc5 {[%emt 0:00:24]} 19. Ba3 {[%emt 0:01:03]} Qxd5 {[%emt 0:05:16]} 20. Bxc5 {[%emt 0:00:14]} Qxc5 {[%emt 0:00:09]} 21. Nxe4 {[%emt 0:00:30]} Qd5 {[%emt 0:00:16]} 22. Qf3 {[%emt 0:01:22]} Kh8 {[%emt 0:03:13]} 23. Rad1 {[%emt 0:07:51]} Re7 {[%emt 0:06:20]} 24. Nd2 {[%emt 0:03:05]} Rxe1+ {[%emt 0:00:17]} 25. Rxe1 {[%emt 0:00:12]} Qxf3 {[%emt 0:00:42]} 26. Nxf3 {[%emt 0:00:10]} Kg8 {[%emt 0:02:49]} 27. Rd1 {[%emt 0:01:32]} Rd8 {[%emt 0:00:07]} 28. a4 {[%emt 0:00:11]} f5 {[%emt 0:01:03]} 29. a5 {[%emt 0:00:37]} Rb8 {[%emt 0:01:12]} 30. Rd3 {[%emt 0:00:46]} Rb5 {[%emt 0:00:26]} 31. Nxd4 {[%emt 0:01:18]} Rd5 {[%emt 0:00:39]} 32. b4 {[%emt 0:03:51]} Rxd4 {[%emt 0:00:10]} 33. Rxd4 {[%emt 0:00:07]} Bxd4 {[%emt 0:00:05]} 34. b5 {[%emt 0:00:56]} Kf7 {[%emt 0:00:00]} 35. b6 {[%emt 0:00:11]} axb6 {[%emt 0:00:00]} 36. axb6 {[%emt 0:00:07]} Bxb6 {[%emt 0:00:00]} 37. Kf1 {[%emt 0:00:13]} h5 {[%emt 0:00:00]} 38. f3 {[%emt 0:00:27]} g5 {[%emt 0:00:00]} 39. Ke2 {[%emt 0:00:44]} Ke6 {[%emt 0:00:00]} 40. g4 {[%emt 0:03:13]} fxg4 {[%emt 0:00:00]} 41. fxg4 {[%emt 0:30:15]} hxg4 {[%emt 0:29:54]} 42. hxg4 {[%emt 0:00:07]} Ke5 {[%emt 0:00:25]} 43. Kf3 {[%emt 0:00:38]} Kd4 {[%emt 0:00:14]} 44. Kg2 {[%emt 0:00:23]} Ke4 {[%emt 0:00:09]} 45. Kh2 {[%emt 0:01:42]} Kf3 {[%emt 0:00:24]} 46. Kh3 {[%emt 0:00:12]} Bd8 {[%emt 0:00:15]} 47. Kh2 {[%emt 0:00:29]} Kxg4 {[%emt 0:00:06]} 48. Kg2 {[%emt 0:00:07]} Be7 {[%emt 0:00:22]} 49. Kf2 {[%emt 0:00:08]} Kh3 {[%emt 0:00:15]} 50. Kg1 {[%emt 0:00:27]} Kg3 {[%emt 0:00:25]} 0-1

[Event "DVM U12W 2021"]
[Site "Willingen"]
[Date "2022.08.13"]
[Round "1"]
[White "Belkina, Elisabeth"]
[Black "Hefele, Stefanie"]
[Result "*"]
[ECO "D06"]
[WhiteElo "1126"]
[BlackElo "1180"]
[Annotator "NA RC COMBH"]
[PlyCount "34"]
[EventDate "2022.08.12"]
[EventType "team-tourn"]
[EventRounds "7"]
[EventCountry "GER"]
[SourceTitle "playchess.com"]
[Source "ChessBase"]
[SourceQuality "1"]
[TimeControl "40/5400+30:1800+30"]

1. d4 {[%emt 0:00:11]} d5 {[%emt 0:00:00]} 2. Nf3 {[%emt 0:00:11]} Nc6 {[%emt 0:00:00]} 3. Bf4 {[%emt 0:00:20]} Bf5 {[%emt 0:00:21]} 4. e3 {[%emt 0:00:21]} e6 {[%emt 0:00:15]} 5. c4 {[%emt 0:03:44]} Bb4+ {[%emt 0:00:13]} 6. Nc3 {[%emt 0:01:22]} Nf6 {[%emt 0:04:14]} 7. Bd3 {[%emt 0:07:28]} dxc4 {[%emt 0:07:08]} 8. Bxf5 {[%emt 0:00:32]} exf5 {[%emt 0:04:43]} 9. O-O {[%emt 0:00:23]} O-O {[%emt 0:04:23]} 10. Qc2 {[%emt 0:02:36]} Bxc3 {[%emt 0:02:23]} 11. bxc3 {[%emt 0:01:17]} Qd7 {[%emt 0:08:05]} 12. Be5 {[%emt 0:07:07]} Ng4 {[%emt 0:07:45]} 13. Bf4 {[%emt 0:02:34]} h6 {[%emt 0:04:58]} 14. Bg3 {[%emt 0:10:18]} g5 {[%emt 0:08:30]} 15. h4 {[%emt 0:04:44]} gxh4 {[%emt 0:01:24]} 16. Nxh4 {[%emt 0:00:51]} Ne7 {[%emt 0:03:55]} 17. Rab1 {[%emt 0:01:07] 0.61} Rab8 *